bitfinex/quotes_ETHUSD_20220212
["timestamp","ask_amount","ask_price","bid_price","bid_amount"]
[1644635117153,1.59672128,2954.8,2954.7,3.99098115]
[1644635117352,1.59672128,2954.8,2954.7,3.5]
[1644635117555,1.59672128,2954.8,2954.7,3.99098566]
[1644635117755,1.59672128,2954.8,2954.7,3.5]
[1644635117955,5.21237871,2954.8,2954.7,1.23834172]
[1644635118156,0.98417563,2953.8,2953.4,4.37247318]
[1644635118355,0.98417563,2953.8,2953.5,0.46972893]
[1644635118356,0.95180222,2953.7,2953.5,0.46972893]
[1644635118560,0.95180222,2953.7,2953.6,0.46972893]
[1644635118955,1.59784912,2953.7,2953.6,0.46972893]
[1644635119356,0.95180222,2953.7,2953.6,0.46972893]
[1644635120098,0.95180222,2953.8,2953.6,3.96972893]
[1644635120300,0.95180222,2953.8,2953.7,0.46972893]
[1644635120499,1.59784912,2953.8,2953.7,0.46972893]
[1644635121001,1.59784912,2953.8,2953.6,3.5]
[1644635121002,0.95180222,2953.8,2953.6,3.5]
[1644635121400,1.95336503,2953.8,2953.6,3.50246236]
[1644635121600,0.95180222,2953.7,2953.6,3.50246236]
[1644635122406,0.95180222,2953.7,2953.6,3.5]
[1644635123008,0.95180222,2953.7,2953.6,3.89482581]
[1644635123854,0.95180222,2953.7,2953.6,3.5]
[1644635125252,0.95180222,2953.8,2953.6,3.5]
[1644635125452,0.02871333,2953.7,2953.6,3.5]
[1644635125652,0.98051555,2953.7,2953.6,3.5]
[1644635127903,0.02871333,2953.7,2953.6,3.5]
[1644635128101,0.98051555,2953.7,2953.6,3.5]
[1644635128302,0.02871333,2953.7,2953.6,3.5]
[1644635128703,0.98051555,2953.7,2953.6,3.5]
[1644635129005,0.02871333,2953.7,2953.6,3.5]
[1644635129202,0.98051555,2953.7,2953.6,3.5]
[1644635129402,0.02871333,2953.7,2953.6,3.5]
[1644635129603,0.98051555,2953.7,2953.6,3.5]
[1644635130604,4.4144226,2953.7,2953.6,3.5]
[1644635130852,0.96473002,2953.7,2953.6,3.5]
[1644635134997,4.41959113,2953.7,2953.6,3.5]
[1644635135401,4.43447157,2953.7,2953.6,3.5]
[1644635136906,4.60357157,2953.7,2953.6,3.5]
[1644635137803,4.60357157,2953.7,2953.6,3.35]
[1644635138249,4.60357157,2953.7,2953.6,1.81306304]
[1644635138448,4.60357157,2953.7,2953.6,1.70825068]
[1644635139047,4.60357157,2953.7,2953.6,0.77787862]
[1644635139651,0.97961046,2953.7,2953.6,0.77787862]
[1644635140351,1.6460469,2954.1,2954.0,7.68134928]
[1644635140551,3.05277604,2954.1,2954.0,7.68134928]
[1644635140750,3.52197604,2954.1,2954.0,7.68134928]
[1644635141149,4.36881404,2954.1,2954.0,7.68134928]
[1644635141555,9.36881404,2954.1,2954.0,7.68134928]
[1644635142000,9.19961404,2954.1,2954.0,7.68134928]
[1644635142402,4.19961404,2954.1,2954.0,7.68134928]
[1644635142602,4.19961404,2954.1,2954.0,7.68509694]
[1644635143003,4.36871404,2954.1,2954.0,7.68509694]
[1644635143803,4.36871404,2954.1,2954.0,7.58509694]
[1644635145003,9.36871404,2954.1,2954.0,7.58509694]
[1644635145203,4.36871404,2954.1,2954.0,7.58509694]
[1644635145404,4.19961404,2954.1,2954.0,7.58509694]
[1644635148154,1.4928849,2954.1,2954.0,7.58509694]
[1644635148355,0.00712622,2954.2,2954.0,7.58509694]
[1644635148754,0.84684,2954.3,2954.0,7.58509694]
[1644635148954,0.00712618,2954.2,2954.1,0.00374766]
[1644635150002,3.4862126,2954.5,2954.1,0.00374766]
[1644635150202,0.00712614,2954.3,2954.1,0.00374766]
[1644635150804,0.85391614,2954.3,2954.1,0.00374766]
[1644635151002,0.00712614,2954.3,2954.1,0.00374766]
[1644635151203,0.84672,2954.4,2954.1,0.00374766]
[1644635151406,0.0071261,2954.3,2954.1,0.00374766]
[1644635152410,2.3398069,2954.3,2954.1,0.00374766]
[1644635153008,0.6460469,2954.3,2954.1,0.00374766]
[1644635153255,0.90137702,2954.2,2954.1,0.00374766]
[1644635153853,1.54742392,2954.2,2954.1,0.00374766]
[1644635154254,2.54027,2954.4,2954.1,0.00374766]
[1644635154255,2.3395069,2954.4,2954.1,0.00374766]
[1644635155053,2.34480202,2954.4,2954.1,0.00374766]
[1644635155254,0.6460469,2954.2,2954.1,0.00374766]
[1644635156855,0.99856792,2954.3,2954.1,0.00374766]
[1644635157101,0.99067318,2954.3,2954.1,0.00374766]
[1644635157405,0.99856787,2954.3,2954.1,0.00374766]
[1644635158200,0.99856787,2954.3,2954.0,6.04842344]
[1644635158201,1.49001304,2954.2,2954.0,6.04842344]
[1644635158401,0.8467917,2954.2,2954.0,6.04842344]
[1644635159101,6.7702,2954.1,2954.0,6.04842344]
[1644635159904,7.41342134,2954.1,2954.0,6.04842344]
[1644635160303,6.7702,2954.1,2954.0,6.04842344]
[1644635160503,7.71951931,2954.1,2954.0,6.04842344]
[1644635162854,8.36533068,2954.1,2954.0,6.04842344]
[1644635163055,7.71951931,2954.1,2954.0,6.53248189]
[1644635163856,7.71951931,2954.1,2954.0,6.04842344]
[1644635165098,7.71951931,2954.1,2954.0,6.07266765]
[1644635165302,8.58060707,2954.1,2954.0,6.07266765]
[1644635169349,7.71951931,2954.1,2954.0,6.07266765]
[1644635170356,7.71951931,2954.1,2954.0,6.04842344]
[1644635171559,8.68977656,2954.1,2954.0,0.71082461]
[1644635171754,0.84702,2953.8,2953.6,0.77787862]
[1644635172000,0.94931931,2953.7,2953.6,0.77787862]
[1644635173003,1.81027959,2953.7,2953.6,0.77787862]
[1644635174404,2.85732978,2953.7,2953.6,0.77787862]
[1644635176968,1.9963695,2953.7,2953.6,0.77787862]
[1644635178167,1.9963695,2953.7,2953.0,0.03079026]
[1644635178371,0.64537327,2953.3,2952.9,0.67278013]
[1644635178568,0.94931931,2953.2,2953.0,0.45010562]
[1644635178768,0.64537327,2953.4,2952.8,0.45010562]
[1644635178967,0.64537327,2953.4,2952.9,0.45010562]
[1644635179167,0.64537327,2953.4,2953.0,0.45010562]
[1644635179369,0.64537327,2953.4,2953.1,0.45010562]
[1644635179598,0.64537327,2953.4,2952.6,6.28253654]
[1644635179799,0.64537327,2953.4,2952.7,0.43598861]
[1644635180199,1.64412922,2953.4,2952.7,0.43598861]
[1644635180400,0.99875595,2953.3,2952.7,0.43598861]
[1644635180600,0.99875595,2953.2,2952.7,0.43598861]
[1644635180800,0.99875595,2953.1,2952.7,0.60528861]
[1644635181003,0.99875595,2953.0,2952.8,0.43598861]
[1644635181202,0.99875595,2952.9,2952.8,0.43598861]
[1644635181402,0.00820638,2953.1,2952.8,0.44419609]
[1644635181602,0.99875595,2953.0,2952.9,0.43598861]
[1644635182710,0.99875595,2953.0,2952.5,1.1674]
[1644635182711,0.00820647,2953.1,2952.8,0.00820743]
[1644635182910,0.99875595,2953.0,2952.9,0.43598861]
[1644635183763,0.99875595,2953.0,2952.8,0.00820743]
[1644635183963,0.99875595,2952.9,2952.8,0.00820743]
[1644635184167,0.99875595,2952.9,2952.8,0.46171963]
[1644635184866,0.99875595,2952.9,2952.8,0.4035122]
[1644635185066,0.99875595,2952.9,2952.7,0.00820752]
[1644635185267,0.00820629,2953.1,2952.7,0.00820752]
[1644635185868,0.02710677,2953.0,2952.7,0.00820752]
[1644635186077,0.02710677,2953.0,2952.3,1.15444997]
[1644635186271,0.02710677,2953.0,2952.8,0.00820748]
[1644635187110,0.02710677,2953.0,2952.5,0.1693]
[1644635187511,0.02710677,2953.0,2952.8,0.00820748]
[1644635187710,0.02710677,2953.0,2952.8,3.50820748]
[1644635188315,0.02710677,2953.0,2952.8,3.5]
[1644635188717,0.02710677,2953.0,2952.8,3.50820748]
[1644635189616,0.02710677,2953.0,2952.8,3.5]
[1644635189816,0.02710677,2953.0,2952.8,3.50820748]
[1644635190748,0.02710677,2953.0,2952.8,3.5]
[1644635190949,0.02710677,2953.0,2952.8,3.50820748]
[1644635191952,0.02710677,2953.0,2952.8,3.5]
[1644635192155,0.02710677,2953.0,2952.8,3.50820748]
[1644635193161,0.02710677,2953.0,2952.8,3.5]
[1644635193359,0.02710677,2953.0,2952.8,3.50820748]
[1644635193560,0.02710677,2953.0,2952.8,3.5119403]
[1644635194500,0.02710677,2953.0,2952.8,3.50373282]
[1644635194803,0.02710677,2953.0,2952.8,3.5119403]
[1644635195703,0.02710677,2953.0,2952.8,3.50373282]
[1644635195903,0.02710677,2953.0,2952.4,0.1693]
[1644635195904,5.81467327,2952.9,2952.4,0.1693]
[1644635196102,5.81467327,2952.9,2952.1,0.032837]
[1644635196103,1.70646898,2952.7,2952.1,0.032837]
[1644635196302,0.64432487,2952.4,2952.1,0.032837]
[1644635196504,0.1693,2952.3,2952.1,0.032837]
[1644635196702,0.1693,2952.3,2952.1,0.0037333]
[1644635196904,0.81362487,2952.3,2951.6,0.0037333]
[1644635197106,0.64432487,2952.2,2951.4,0.0037333]
[1644635197407,0.8472845,2952.2,2951.4,0.0037333]
[1644635198005,0.8472845,2952.2,2951.4,3.5037333]
[1644635199653,0.8472845,2952.2,2951.4,3.5]
[1644635199654,1.49160937,2952.2,2951.4,3.5]
[1644635199853,1.49160937,2952.2,2951.4,1.96229104]
[1644635200552,0.84741,2952.0,2951.7,0.00820855]
[1644635201154,0.8472845,2952.2,2951.7,0.00820855]
[1644635201356,0.02680179,2952.3,2951.7,0.00820855]
[1644635201561,0.02680179,2952.3,2952.0,0.85286871]
[1644635202007,0.02680179,2952.3,2952.1,0.1693]
[1644635203103,0.02680179,2952.3,2952.1,0.17750816]
[1644635203902,0.02680179,2952.3,2952.1,0.00820816]
[1644635204105,0.02680179,2952.3,2952.0,2.62216871]
[1644635204305,0.02680179,2952.3,2952.1,0.00820816]
[1644635205307,0.02680179,2952.3,2952.0,2.62216871]
[1644635205508,0.02680179,2952.3,2952.1,0.00820816]
[1644635205763,0.00820539,2953.0,2952.1,0.40677538]
[1644635205961,1.03034827,2952.9,2952.1,3.11593019]
[1644635206161,1.03034827,2952.9,2952.1,1.00820816]
[1644635206362,1.03034827,2952.9,2952.1,4.93631838]
[1644635206562,1.03034827,2952.9,2952.2,0.1693]
[1644635206767,1.03034827,2952.9,2952.4,0.00820787]
[1644635206961,0.00820593,2953.0,2952.5,0.56777583]
[1644635206962,1.03034827,2952.8,2952.5,0.56777583]
[1644635207165,1.03034827,2952.7,2952.5,0.1693]
[1644635207365,0.00820593,2953.0,2952.5,0.1693]
[1644635207566,1.030821,2952.9,2952.5,0.1693]
[1644635207766,1.030821,2953.1,2952.5,0.1693]
[1644635207967,0.00820638,2953.0,2952.6,0.00820762]
[1644635208169,1.03135331,2952.9,2952.6,0.40683309]
[1644635208368,1.03135331,2952.9,2952.6,0.00820762]
[1644635208570,1.03135331,2952.9,2952.7,0.39856675]
[1644635209070,1.03135331,2952.8,2952.7,0.40677432]
[1644635209508,1.03135331,2952.8,2952.7,1.40677432]
[1644635209699,1.03135331,2952.8,2952.7,3.90677432]
[1644635209900,1.03135331,2952.9,2952.7,3.50820757]
[1644635210099,1.03135331,2952.9,2952.7,3.5]
[1644635210299,1.03135331,2952.8,2952.7,3.5]
[1644635211303,2.03135331,2952.8,2952.7,3.5]
[1644635213449,2.03135331,2952.8,2952.7,3.90254521]
[1644635219907,2.03135331,2952.8,2952.7,3.5]
[1644635220108,2.03135331,2952.8,2952.7,3.9027293]
[1644635220308,2.03135331,2952.8,2952.7,3.90273069]
[1644635220506,2.03135331,2952.8,2952.7,3.9027962]
[1644635220751,2.03135331,2952.8,2952.7,3.5]
[1644635220953,2.03135331,2952.8,2952.7,3.90279768]
[1644635221152,2.03135331,2952.8,2952.7,3.5]
[1644635221953,2.03135331,2952.8,2952.7,3.90279863]
[1644635222156,2.03135331,2952.8,2952.7,3.90277778]
[1644635222358,2.03135331,2952.8,2952.7,3.80277778]
[1644635222754,2.03135331,2952.8,2952.7,3.80650868]
[1644635223456,2.03135331,2952.8,2952.7,3.80277778]
[1644635223757,2.03135331,2952.8,2952.7,4.7922678]
[1644635223955,2.03135331,2952.8,2952.7,4.78853896]
[1644635224155,2.03135331,2952.8,2952.7,4.78852907]
[1644635225007,2.03135331,2952.8,2952.7,5.08852907]
[1644635225204,2.03135331,2952.8,2952.7,9.62323993]
[1644635225405,0.03608428,2952.9,2952.8,4.69573588]
[1644635225604,0.03608428,2952.9,2952.8,8.2458206]
[1644635225904,0.00820638,2953.0,2952.8,9.7348206]
[1644635226104,0.00820638,2953.0,2952.9,3.2225071]
[1644635226306,0.00820638,2953.0,2952.9,4.5225071]
[1644635226707,0.00820638,2953.0,2952.9,5.3115071]
[1644635226906,0.81362487,2953.8,2953.2,0.84667]
[1644635227111,2.21471032,2953.9,2953.2,1.33567]
[1644635227410,2.21471032,2953.9,2953.6,0.91189811]
[1644635227616,2.21471032,2953.9,2953.3,3.19868092]
[1644635227912,2.21471032,2953.9,2953.2,4.39353967]
[1644635228110,2.21471032,2953.9,2953.2,4.40267484]
[1644635228354,0.00820597,2953.7,2953.2,4.40267484]
[1644635228954,0.00820597,2953.7,2953.6,1.19289244]
[1644635229356,1.57038545,2953.9,2953.2,4.40267484]
[1644635229557,1.57038545,2953.9,2953.2,1.33567]
[1644635229558,0.00820592,2953.8,2953.2,1.33567]
[1644635230559,2.21471032,2953.9,2953.2,1.33567]
[1644635230759,0.00820607,2953.6,2953.4,1.02770206]
[1644635231761,2.21471032,2953.9,2953.4,1.02770206]
[1644635232015,0.00820607,2953.6,2953.4,1.02770206]
[1644635232810,1.57038545,2953.9,2953.4,1.02770206]
[1644635233007,1.57038545,2953.9,2953.5,3.07931697]
[1644635233209,0.00820607,2953.6,2953.5,3.07931697]
[1644635233408,0.00820607,2953.6,2953.5,4.07931697]
[1644635233807,0.00820607,2953.6,2953.5,3.07931697]
[1644635234008,1.57038545,2953.9,2953.5,3.07931697]
[1644635234207,1.57038545,2953.9,2953.4,1.32770206]
[1644635234408,0.00820602,2953.7,2953.4,1.32770206]
[1644635235210,2.21471032,2953.9,2953.4,1.32770206]
[1644635235610,0.00820602,2953.7,2953.5,0.01703948]
[1644635236453,1.57038545,2953.9,2953.5,0.01703948]
[1644635236853,0.00820597,2953.7,2953.5,0.01703948]
[1644635237659,1.57038545,2953.9,2953.5,0.01703948]
[1644635237859,0.00820597,2953.7,2953.5,0.01703948]
[1644635238962,0.64432487,2953.7,2953.5,0.01703948]
[1644635239364,0.65253084,2953.7,2953.5,0.01703948]
[1644635239607,0.64432487,2953.6,2953.5,0.01703948]
[1644635239807,0.17730597,2953.7,2953.5,0.01703948]
[1644635240009,1.03644165,2953.7,2953.5,0.01703948]
[1644635240210,1.02823568,2953.7,2952.8,6.30783588]
[1644635240410,2.33718028,2953.5,2952.8,6.30783588]
[1644635240611,0.64324778,2953.4,2952.8,2.59393588]
[1644635241012,2.33718028,2953.5,2952.8,1.36483588]
[1644635241211,1.49021028,2953.5,2952.8,1.36483588]
[1644635241711,0.00820641,2953.3,2952.8,1.36483588]
[1644635242118,0.65145419,2953.3,2952.8,1.36483588]
[1644635242615,0.64324778,2953.3,2952.8,1.36483588]
[1644635242815,0.65145429,2953.2,2952.8,1.36483588]
[1644635243015,0.65145429,2953.2,2952.8,1.19573588]
[1644635243016,0.00820651,2953.2,2952.8,1.19573588]
[1644635243260,0.65145429,2953.2,2952.8,4.69573588]
[1644635243658,0.64324778,2953.2,2952.8,4.69573588]
[1644635244059,0.00758482,2953.1,2952.8,4.69573588]
[1644635244258,0.6508326,2953.1,2952.8,4.69573588]
[1644635244858,0.64324778,2953.1,2952.8,4.69573588]
[1644635245064,0.65083265,2953.1,2952.8,4.69573588]
[1644635245464,0.99472885,2953.0,2952.8,4.69573588]
[1644635246164,0.99472885,2952.9,2952.8,4.69573588]
[1644635248806,1.00235536,2953.0,2952.8,4.69573588]
[1644635249007,0.99472885,2952.9,2952.8,4.69573588]
[1644635250005,1.00235536,2953.0,2952.8,5.13448754]
[1644635250206,0.99472885,2952.9,2952.8,4.71195688]
[1644635251759,0.99472885,2952.9,2952.8,5.45604736]
[1644635251959,0.99472885,2952.9,2952.8,6.75604736]
[1644635252163,0.99472885,2952.9,2952.8,5.15604736]
[1644635252463,0.99472885,2952.9,2952.8,5.32534736]
[1644635252662,0.99472885,2952.9,2952.8,6.92534736]
[1644635253263,0.99472885,2952.9,2952.8,7.08799962]
[1644635254513,0.99472885,2952.9,2952.8,6.92534736]
[1644635258355,0.99472885,2952.9,2952.8,6.75604736]
[1644635258864,0.00762391,2953.0,2952.9,3.5]
[1644635259060,0.00762391,2953.0,2952.9,7.27032072]
[1644635259260,0.64324778,2953.6,2952.9,8.43297298]
[1644635259561,0.00762392,2953.1,2953.0,1.84676]
[1644635259760,0.00762392,2953.1,2953.0,3.75677459]
[1644635259962,0.00762392,2953.1,2953.0,2.91001459]
[1644635260361,0.00762392,2953.1,2953.0,1.91001459]
[1644635260561,0.64324778,2953.5,2953.0,1.61001459]
[1644635260763,0.00762383,2953.2,2953.1,0.3]
[1644635261762,1.02843568,2953.8,2953.1,1.12095226]
[1644635261763,0.64324778,2953.7,2953.1,1.12095226]
[1644635262009,0.00762373,2953.3,2953.2,0.1691]
[1644635262214,0.00762373,2953.3,2953.2,0.6581]
[1644635262612,0.00762373,2953.3,2953.2,1.6581]
[1644635262813,0.64324778,2953.7,2953.2,0.6581]
[1644635263014,0.64324778,2953.7,2953.6,1.11063436]
[1644635263613,0.64324778,2953.7,2953.4,0.489]
[1644635263813,0.64324778,2953.7,2953.4,1.089]
[1644635264316,0.65087111,2953.7,2953.4,1.089]
[1644635265315,0.64324778,2953.8,2953.4,1.089]
[1644635265515,0.37888483,2953.2,2953.1,4.44390226]
[1644635265754,0.37888483,2953.2,2953.1,5.36668195]
[1644635266759,0.37888483,2953.2,2953.1,5.53598195]
[1644635267362,0.37888483,2953.2,2953.1,5.83598195]
[1644635269266,0.37888483,2953.2,2953.1,6.32498195]
[1644635270106,0.37888483,2953.2,2953.1,6.12518195]
[1644635270307,0.39727036,2953.2,2953.1,6.02498195]
[1644635270606,0.39727036,2953.2,2953.1,5.83345389]
[1644635270807,0.39727036,2953.2,2953.1,5.84381447]
[1644635271406,0.39727036,2953.2,2953.1,5.67451447]
[1644635271606,1.57038545,2953.9,2953.3,3.5]
[1644635271813,1.62526574,2954.0,2953.5,0.84659]
[1644635272012,0.97989222,2954.0,2953.6,0.489]
[1644635272413,0.97989222,2954.0,2953.6,0.789]
[1644635272613,0.97989222,2954.0,2953.7,0.96848803]
[1644635272913,0.97989222,2954.0,2953.8,0.489]
[1644635273856,0.98726369,2954.0,2953.8,0.489]
[1644635274256,1.63263721,2954.0,2953.8,0.489]
[1644635274657,0.98726369,2954.0,2953.8,0.489]
[1644635274857,0.97989222,2954.0,2953.8,0.489]
[1644635275258,1.63263721,2954.0,2953.8,0.489]
[1644635275458,0.98726369,2954.0,2953.8,1.489]
[1644635275659,0.98726369,2954.0,2953.8,0.489]
[1644635275859,0.98726369,2954.0,2953.8,1.489]
[1644635276059,0.97989222,2954.0,2953.8,0.489]
[1644635276259,0.97989222,2954.0,2953.8,1.489]
[1644635276459,0.98726369,2954.0,2953.8,4.989]
[1644635277216,0.97989222,2954.0,2953.8,4.989]
[1644635277615,0.98701696,2954.0,2953.8,4.989]
[1644635278617,0.88422668,2953.9,2953.8,4.989]
[1644635279215,7.65502668,2953.9,2953.8,4.989]
[1644635279620,7.65502668,2953.9,2953.8,8.03161363]
[1644635279818,7.65502668,2953.9,2953.8,4.989]
[1644635281556,7.65502668,2953.9,2953.8,5.53784013]
[1644635281755,7.65502668,2953.9,2953.8,4.989]
[1644635281956,7.65502668,2953.9,2953.8,5.5378227]
[1644635282162,7.65502668,2953.9,2953.8,4.989]
[1644635284162,7.65502668,2953.9,2953.8,8.05895133]
[1644635284609,7.65502668,2953.9,2953.8,8.90538133]
[1644635284814,7.65502668,2953.9,2953.8,9.45397347]
[1644635285212,7.65502668,2953.9,2953.8,9.62307347]
[1644635285412,7.65502668,2953.9,2953.8,9.52307347]
[1644635286412,7.65502668,2953.9,2953.8,9.35397347]
[1644635286812,6.7708,2953.9,2953.8,9.35397347]
[1644635287014,5.23428976,2953.9,2953.8,9.35397347]
[1644635287215,0.00714732,2954.0,2953.9,3.5]
[1644635287420,0.00714732,2954.0,2953.9,8.97871472]
[1644635287616,0.00358026,2954.6,2954.0,3.26928]
[1644635287816,6.7698,2954.5,2954.2,0.84638]
[1644635288017,0.91562835,2954.4,2954.2,0.84638]
[1644635288259,6.7698,2954.3,2954.2,0.84638]
[1644635288459,7.68184809,2954.3,2954.2,1.87034558]
[1644635291664,7.68184809,2954.3,2954.2,1.02396558]
[1644635295118,7.68184809,2954.3,2954.2,1.03984671]
[1644635299263,7.68184809,2954.3,2954.2,1.88620671]
[1644635299911,7.68184809,2954.3,2954.2,5.64944311]
[1644635300113,7.68184809,2954.3,2954.2,6.13844311]
[1644635300312,7.68184809,2954.3,2954.2,6.61869834]
[1644635300513,7.68184809,2954.3,2954.2,6.60281721]
[1644635301716,7.68184809,2954.3,2954.2,3.35932558]
[1644635302515,7.68184809,2954.3,2954.2,6.41154076]
[1644635303559,7.68184809,2954.3,2954.2,3.35932558]
[1644635306167,7.68184809,2954.3,2954.2,3.88844961]
[1644635306365,7.68184809,2954.3,2954.2,3.35932558]
[1644635307011,7.68184809,2954.3,2954.2,2.35213774]
[1644635307211,7.68184809,2954.3,2954.2,3.2735583]
[1644635309114,7.68184809,2954.3,2954.2,3.5735583]
[1644635309715,0.91204809,2954.3,2954.2,3.5735583]
[1644635310519,0.91204809,2954.3,2954.2,3.04439514]
[1644635310757,0.91204809,2954.3,2954.2,3.60244415]
[1644635311858,0.91204809,2954.3,2954.2,6.70737003]
[1644635312262,0.35060852,2954.3,2954.2,6.70737003]
[1644635313664,0.35060852,2954.3,2954.2,3.60244415]
[1644635315406,0.65653766,2954.4,2954.3,4.44259]
[1644635315608,0.00758388,2954.4,2954.3,7.97114331]
[1644635315809,0.64537352,2954.6,2954.3,6.10085]
[1644635316006,0.01120571,2954.5,2954.4,1.0]
[1644635316213,0.00762545,2954.5,2954.4,1.789]
[1644635317012,0.00358026,2954.6,2954.5,0.84621]
[1644635317212,0.00762535,2954.6,2954.5,2.18142]
[1644635317413,0.00762535,2954.6,2954.5,2.48142]
[1644635317614,0.65299887,2954.6,2954.5,2.48142]
[1644635317813,0.00762535,2954.6,2954.5,2.48142]
[1644635318260,0.64537352,2954.7,2954.5,2.48142]
[1644635318462,0.65299877,2954.7,2954.5,2.48142]
[1644635318662,0.64537352,2954.6,2954.5,2.48142]
[1644635319064,0.65299877,2954.7,2954.5,2.48142]
[1644635319464,0.64537352,2954.7,2954.5,2.48142]
[1644635319665,0.65299592,2954.7,2954.5,5.98142]
[1644635319865,0.65299592,2954.7,2954.6,1.0]
[1644635320468,0.64537352,2954.7,2954.6,1.0]
[1644635321874,0.86271594,2954.7,2954.6,1.0]
[1644635322313,0.01120261,2954.8,2954.6,1.0]
[1644635322711,0.00762235,2954.8,2954.6,1.0]
[1644635322912,0.00366079,2954.8,2954.6,1.0]
[1644635323111,1.30548974,2954.9,2954.6,1.0]
[1644635323311,0.86222581,2954.7,2954.6,1.0]
[1644635324313,0.00366079,2954.8,2954.6,1.0]
[1644635324517,0.01128332,2954.8,2954.6,1.0]
[1644635325315,0.00366079,2954.8,2954.6,1.0]
[1644635325515,0.01128327,2954.8,2954.6,1.0]
[1644635325758,0.01128327,2954.8,2954.5,3.5]
[1644635326058,0.86266042,2954.6,2954.5,3.5]
[1644635326258,0.86266042,2954.6,2954.5,4.34629]
[1644635326457,0.01128327,2954.8,2954.5,5.34629]
[1644635326458,0.86266042,2954.7,2954.5,5.34629]
[1644635326862,0.87028302,2954.7,2954.5,5.34629]
[1644635327068,0.87028302,2954.7,2954.5,3.8099695]
[1644635327665,0.86266042,2954.6,2954.5,3.8099695]
[1644635329066,0.86266042,2954.6,2954.5,4.1099695]
[1644635329267,0.86266042,2954.6,2954.5,4.4099695]
[1644635329517,0.0076226,2954.7,2954.5,4.4099695]
[1644635329711,0.0076226,2954.7,2954.6,1.0]
[1644635329909,0.87028302,2954.7,2954.5,3.8099695]
[1644635330109,0.86266042,2954.7,2954.5,4.1099695]
[1644635330308,0.86266042,2954.7,2954.5,3.8099695]
[1644635330509,0.87394371,2954.8,2954.5,3.8099695]
[1644635330710,0.87028292,2954.8,2954.5,3.8099695]
[1644635330909,0.86266042,2954.7,2954.5,3.8099695]
[1644635331508,0.87028297,2954.7,2954.5,3.8099695]
[1644635332515,0.86266042,2954.7,2954.5,3.8099695]
[1644635332715,0.00762255,2954.7,2954.5,4.4099695]
[1644635332914,0.00762255,2954.7,2954.6,1.0]
[1644635333113,0.01128334,2954.7,2954.6,1.0]
[1644635333358,0.00762255,2954.7,2954.6,1.0]
[1644635333563,0.00367759,2954.8,2954.7,0.84628]
[1644635333862,0.00367759,2954.8,2954.7,1.82352244]
[1644635334062,0.00367759,2955.3,2954.7,1.82352244]
[1644635334262,0.00367759,2955.6,2955.3,1.10432439]
[1644635335463,0.74657038,2955.6,2955.3,1.10432439]
[1644635336666,0.1691,2955.5,2955.3,1.10432439]
[1644635336867,0.74289279,2955.4,2955.3,1.10432439]
[1644635339518,0.74289279,2955.4,2954.8,1.0]
[1644635339722,0.00367759,2955.3,2954.8,1.6]
[1644635339921,0.74657038,2955.3,2954.8,0.6]
[1644635340126,0.74289279,2955.2,2954.8,0.3]
[1644635340322,0.74657038,2955.1,2954.7,1.44628]
[1644635340523,0.74289279,2955.0,2954.7,1.44628]
[1644635340761,0.74289279,2954.9,2954.8,1.06712589]
[1644635341161,0.74289279,2954.9,2954.8,2.06712589]
[1644635343562,0.74289279,2954.9,2954.8,5.56712589]
[1644635347024,0.74289279,2954.9,2954.8,4.03092627]
[1644635348260,0.74289279,2954.9,2954.8,5.02648738]
[1644635349068,0.74289279,2954.9,2954.8,3.5]
[1644635349069,1.60543725,2954.9,2954.8,3.5]
[1644635349265,0.74289279,2954.9,2954.8,3.5]
[1644635351465,0.75058815,2955.0,2954.8,3.5]
[1644635351666,0.74289279,2954.9,2954.8,3.5]
[1644635353521,2.03666888,2954.9,2954.8,3.5]
[1644635353722,0.74289279,2954.9,2954.8,3.5]
[1644635354423,2.46782788,2954.9,2954.8,3.5]
[1644635354625,0.91199279,2954.9,2954.8,3.5]
[1644635355024,2.63692788,2954.9,2954.8,1.19521406]
[1644635355625,0.91199279,2954.9,2954.8,1.19521406]
[1644635356666,0.74289279,2954.9,2954.8,1.19521406]
[1644635360918,2.03480645,2954.9,2954.8,1.19521406]
[1644635361120,0.74289279,2954.9,2954.8,1.19521406]
[1644635361521,1.2919195,2954.9,2954.8,1.19521406]
[1644635361720,2.03481229,2954.9,2954.8,1.19521406]
[1644635362527,0.74289279,2954.9,2954.8,1.19521406]
[1644635363561,2.24289279,2954.9,2954.8,1.19521406]
[1644635363963,5.41453788,2954.9,2954.8,1.19521406]
[1644635364163,4.85870279,2954.9,2954.8,1.19521406]
[1644635367025,3.55,2954.8,2953.6,3.44702087]
[1644635367219,0.64530428,2954.0,2953.4,1.6928]
[1644635367519,1.38819707,2953.9,2953.5,0.80894598]
[1644635367719,0.74289279,2953.8,2953.5,0.80894598]
[1644635367920,0.74289279,2953.7,2953.6,0.1691]
[1644635368320,0.74289279,2953.7,2953.5,0.1691]
[1644635368522,0.74289279,2953.6,2953.4,1.15058483]
[1644635368722,0.64530428,2954.0,2953.4,1.15058483]
[1644635368723,0.74289279,2953.5,2953.4,1.15058483]
[1644635368926,0.74289279,2953.5,2952.6,2.15084418]
[1644635368927,3.55,2953.2,2952.6,2.15084418]
[1644635369222,3.55,2953.2,2952.4,1.3074112]
[1644635369223,3.55,2953.0,2952.4,1.3074112]
[1644635369425,3.55,2952.8,2952.4,0.79898567]
[1644635369625,3.55,2952.8,2951.7,0.1693]
[1644635369626,0.01237863,2952.5,2951.7,0.1693]
[1644635369826,1.7860755,2952.4,2951.7,0.1693]
[1644635370024,5.2860755,2952.4,2951.7,0.1693]
[1644635370224,5.2860755,2952.4,2951.5,0.04316468]
[1644635370225,3.55,2952.0,2951.5,0.04316468]
[1644635370423,5.3,2952.1,2951.5,0.04316468]
[1644635370424,9.90119279,2951.9,2951.5,0.04316468]
[1644635370622,9.90119279,2951.9,2950.3,7.46]
[1644635370623,6.5,2951.7,2950.3,7.46]
[1644635370865,1.74289279,2951.6,2950.5,0.25]
[1644635371164,0.84771,2951.3,2950.9,0.00820376]
[1644635371366,2.01692,2951.6,2951.0,0.5112853]
[1644635371367,1.0,2951.6,2951.0,0.5112853]
[1644635371567,0.92686926,2951.5,2951.0,0.5112853]
[1644635371963,0.92686926,2951.4,2951.0,0.5112853]
[1644635372168,0.92686926,2951.3,2950.6,1.01553512]
[1644635372369,0.92686926,2951.2,2950.7,0.50215433]
[1644635372569,4.6063462,2951.6,2951.1,0.00820352]
[1644635372570,0.3,2951.5,2951.1,0.00820352]
[1644635372770,0.1693,2951.4,2951.1,0.00820352]
[1644635373171,0.1693,2951.5,2951.1,0.00820352]
[1644635373369,1.0,2951.6,2950.6,1.01553512]
[1644635373569,4.4272524,2951.6,2950.6,1.01553512]